Cogmind - Beta 13 @@@ ROGUE MODE // 2024.04.02 @ 19:00:28 Player: OldWhovian Result: Self-destructed Performance ------------- Evolutions (0) 0 Regions Visited (4) 800 Robots Destroyed (20) 100 Value Destroyed (403) 403 Prototype IDs (2) 40 Alien Tech Used (0) 0 Bonus (0) 0 TOTAL SCORE: 1343 Bonus ------- None Cogmind --------- Core Integrity 115/250 Matter 300/300 Energy 150/150 System Corruption 0% Temperature Cool (0) Movement Walking (190) Ox1 Location -8/Recycling Parts ------- > --- POWER (1) -------- Light Angular Momentum Engine > --- PROPULSION (2) --- Carbon-fiber Leg Carbon-fiber Leg > --- UTILITY (2) ------ Large Storage Unit Shield Generator > --- WEAPON (2) ------- EM Pulse Gun Light Cannon > --- INVENTORY (15) --- Light Angular Momentum Engine Myomer Leg Myomer Leg Improved Heat Sink Improved Heat Sink Medium Storage Unit Particle Gun Particle Gun Beamcaster Beamcaster Battle Cannon Grenade Launcher Rocket Launcher Peak State ------------ > --- POWER ------------ Light Angular Momentum Engine > --- PROPULSION ------- Carbon-fiber Leg Carbon-fiber Leg > --- UTILITY ---------- Large Storage Unit Shield Generator > --- WEAPON ----------- EM Pulse Gun Light Cannon > --- INVENTORY -------- Light Angular Momentum Engine Myomer Leg Myomer Leg Scrap Engine Improved Heat Sink Improved Heat Sink Medium Storage Unit Particle Gun Particle Gun Beamcaster Beamcaster Battle Cannon Grenade Launcher Rocket Launcher [Rating: 22] Favorites ----------- Power Ion Engine Engine Ion Engine Propulsion Light Treads Treads Light Treads Leg Carbon-fiber Leg Utility Shield Generator Device Shield Generator Storage Medium Storage Unit Weapon EM Pulse Gun Energy Gun EM Pulse Gun Ballistic Gun Light Assault Rifle Ballistic Cannon Light Cannon Build | -11 -10 -10 -10 -8 ------- Run | Yrd Mat Min Sub Rec Slots Evolved . | . . . . . Power . | . . . . . Propulsion . | . . . . . Utility . | . . . . . Weapon . | . . . . . Parts Attached 13 | 6 2 . 5 . Power 2 | 1 . . 1 . Engine 2 | 1 . . 1 . Core . | . . . . . Reactor . | . . . . . Propulsion 4 | 2 . . 2 . Treads 2 | 2 . . . . Leg 2 | . . . 2 . Wheel . | . . . . . Hover . | . . . . . Flight . | . . . . . Utility 4 | 1 2 . 1 . Device 1 | . 1 . . . Storage 3 | 1 1 . 1 . Processor . | . . . . . Hackware . | . . . . . Protection . | . . . . . Artifact . | . . . . . Weapon 3 | 2 . . 1 . Energy Gun 1 | 1 . . . . Energy Cannon . | . . . . . Ballistic Gun 1 | 1 . . . . Ballistic Cannon 1 | . . . 1 . Launcher . | . . . . . Special Weapon . | . . . . . Impact Weapon . | . . . . . Slashing Weapon . | . . . . . Piercing Weapon . | . . . . . Special Melee Weapon . | . . . . . Unidentified Prototypes . | . . . . . Parts Lost 1 | . . . 1 . Power . | . . . . . Propulsion 1 | . . . 1 . Utility . | . . . . . Weapon . | . . . . . Highest Loss Streak 1 | . . . 1 . To Critical Strikes . | . . . . . Average Slot Usage (%) 99 | . 96 100 100 100 Engine 14 | . 14 14 14 14 Treads 26 | . 28 28 25 . Leg 1 | . . . 2 28 Device 13 | . 10 14 14 14 Storage 14 | . 14 14 14 14 Energy Gun 14 | . 14 14 14 14 Ballistic Gun 9 | . 14 14 4 . Ballistic Cannon 4 | . . . 9 14 Naked Turns . | . . . . . Heaviest Build 36 | 13 20 20 36 36 Greatest Support 40 | 40 40 40 40 30 Greatest Overweight (x) 3 | 3 . . 1 1 Average Overweight (x) . | . . . . 1 Largest Inventory Capacity 15 | 8 10 10 15 15 Average Capacity 11 | 7 9 10 14 15 Most Carried 15 | 4 10 10 15 15 Average Carried 11 | 2 8 9 13 13 Final Capacity 15 | 8 10 10 15 15 Final Carried 13 | 4 10 10 13 13 Class Distribution -------------------- 100% | Mutant Dominant Class ---------------- Mutant | -10/Materials Mutant | -10/Mines Mutant | -10/Subcaves Mutant | -8/Recycling Resources | -11 -10 -10 -10 -8 ----------- Run | Yrd Mat Min Sub Rec Matter Collected 486 | 224 77 8 177 . Remotely . | . . . . . Salvage Created 645 | 64 228 30 323 . Parts 30 | 2 8 2 18 . Haulers Intercepted . | . . . . . Recyclers Shooed 1 | . 1 . . . Parts Field Recycled . | . . . . . Retrieved Matter . | . . . . . Parts Self-Destructed 7 | . . . 7 . Prevented . | . . . . . Kills | -11 -10 -10 -10 -8 ------- Run | Yrd Mat Min Sub Rec Combat Hostiles Destroyed 13 | . 2 . 11 . Guns 8 | . 2 . 6 . Cannons 4 | . . . 4 . AOE 1 | . . . 1 . Classes Destroyed 6 | 1 2 . 3 . Worker 3 | . 2 1 . . Recycler 2 | 1 1 . . . Turret 2 | . . . 2 . Swarmer 6 | . . . 6 . Grunt 2 | . 2 . . . Subdweller 5 | . . . 5 . Best Kill Streak 3 | 1 2 1 3 . Combat Bots Only 3 | . 2 . 3 . Max Kills in Single Turn 1 | 1 1 1 1 . Gunslinging . | . . . . . Exploded 1 | . . . 1 . Melee . | . . . . . Uniques/NPCs Destroyed . | . . . . . Combat | -11 -10 -10 -10 -8 -------- Run | Yrd Mat Min Sub Rec Hostile Shots Fired 152 | . 5 . 147 . Missed 71 | . 2 . 69 . Damage Taken 659 | . 26 . 633 . Core 135 | . 17 . 118 . Absorbed by Shields 263 | . 9 . 254 . Core Remaining (%) 100 | 100 . . . . Volleys Fired 71 | 7 17 5 42 . Largest 2 | 2 2 2 2 . Hottest 75 | 60 60 60 75 . Shots Fired 140 | 12 34 10 84 . Gun 110 | 12 34 10 54 . Cannon 30 | . . . 30 . Launcher . | . . . . . Special . | . . . . . Kinetic 71 | 7 17 5 42 . Thermal . | . . . . . Explosive . | . . . . . Electromagnetic 69 | 5 17 5 42 . Robot Hit Streak 17 | 4 6 2 17 . Robot Miss Streak 6 | 3 6 1 1 . Penetration Max . | . . . . . Secondary Targets . | . . . . . Shots Hit Robots 99 | 8 17 6 68 . Core Hits 40 | 4 10 3 23 . Critical Kills . | . . . . . Critical Parts Destroyed . | . . . . . Critical Strikes 3 | . . . 3 . Blast 2 | . . . 2 . Corrupt 1 | . . . 1 . Melee Attacks . | . . . . . Impact . | . . . . . Slashing . | . . . . . Piercing . | . . . . . Sneak Attacks . | . . . . . Combat Hostiles . | . . . . . Follow-up Attacks . | . . . . . Damage Inflicted 1131 | 73 171 95 792 . Guns 725 | 73 171 61 420 . Cannons 277 | . . . 277 . Explosions 129 | . . 34 95 . Melee . | . . . . . Ramming . | . . . . . Kinetic 517 | 47 65 24 381 . Thermal 129 | . . 34 95 . Explosive . | . . . . . Electromagnetic 485 | 26 106 37 316 . Impact . | . . . . . Slashing . | . . . . . Piercing . | . . . . . Highest Corruption . | . . . . . Average Corruption . | . . . . . Corruption Purged . | . . . . . Corruption Blocked . | . . . . . Overload Shots . | . . . . . Overflow Damage 12 | . . . 12 . Projectiles 12 | . . . 12 . Explosions . | . . . . . Melee . | . . . . . Knockbacks 2 | . . . 2 . Impact . | . . . . . Kinetic 2 | . . . 2 . Secondary . | . . . . . Self-Inflicted Damage . | . . . . . Shots . | . . . . . Rammed . | . . . . . Targets Rammed . | . . . . . Kicked . | . . . . . Crushed . | . . . . . Highest Temperature 52 | 40 52 20 . . Average Temperature 17 | 17 18 13 . . Received Heat Transfer 189 | . 12 . 177 . Siege Activations . | . . . . . Robots Corrupted . | . . . . . Combat Hostiles . | . . . . . Parts Fried . | . . . . . Impact Corruptions . | . . . . . Robots Melted . | . . . . . Combat Hostiles . | . . . . . Parts Melted 1 | . . . 1 . Heat Transferred 200 | . . 50 150 . Parts Sabotaged . | . . . . . Parts Stolen . | . . . . . Parts Stripped . | . . . . . Power Chain Reactions 2 | . . 1 1 . Alert | -11 -10 -10 -10 -8 ------- Run | Yrd Mat Min Sub Rec Peak Influence 1072 | 5 48 10 . 1072 Initial 1072 | . 3 5 . 1072 Average 54 | 1 11 5 . 1072 Maximum Alert Level 3 | . . . . 3 Low Security (%) 95 | 100 100 100 . . Level 1 . | . . . . . Level 2 . | . . . . . Level 3 4 | . . . . 100 Level 4 . | . . . . . Level 5 . | . . . . . High Security . | . . . . . Max Security . | . . . . . Squads Dispatched . | . . . . . Investigation . | . . . . . Extermination . | . . . . . Reinforcement . | . . . . . Assault . | . . . . . Garrison . | . . . . . Intercept . | . . . . . Searches Triggered . | . . . . . Construction Impeded . | . . . . . Haulers Reinforced . | . . . . . Active Scanning Responses . | . . . . . Cargo Convoy Interrupts . | . . . . . Stealth | -11 -10 -10 -10 -8 --------- Run | Yrd Mat Min Sub Rec Distress Signals . | . . . . . Communications Jammed . | . . . . . Distress Signals . | . . . . . Times Spotted 100 | . 2 . 98 . Peak Tracking Total 7 | . 2 . 7 . Tactical Retreats 7 | . . . 7 . Traps | -11 -10 -10 -10 -8 ------- Run | Yrd Mat Min Sub Rec Traps Triggered 2 | . . . 2 . Indirectly . | . . . . . Trap Hack Attempts . | . . . . . Triggered . | . . . . . Disarmed . | . . . . . Reprogrammed . | . . . . . Reused . | . . . . . Traps Extracted . | . . . . . Installed . | . . . . . Triggered . | . . . . . Machines | -11 -10 -10 -10 -8 ---------- Run | Yrd Mat Min Sub Rec Machines Disabled 2 | . . . 2 . Max in Single Turn 1 | . . . 1 . Machines Repaired . | . . . . . Machines Dismantled . | . . . . . Machines Sabotaged . | . . . . . Overloaded Fab Kills . | . . . . . Hacking | -11 -10 -10 -10 -8 --------- Run | Yrd Mat Min Sub Rec Machines Accessed 1 | . 1 . . . Terminals 1 | . 1 . . . Fabricators . | . . . . . Repair Stations . | . . . . . Recycling Units . | . . . . . Scanalyzers . | . . . . . Garrison Access . | . . . . . Total Hacks 4 | . 4 . . . Successful 2 | . 2 . . . Failed 2 | . 2 . . . Catastrophic . | . . . . . Database Lockouts . | . . . . . Manual . | . . . . . Terminals 4 | . 4 . . . Fabricators . | . . . . . Repair Stations . | . . . . . Recycling Units . | . . . . . Scanalyzers . | . . . . . Garrison Access . | . . . . . Terminal Hacks 2 | . 2 . . . Prototype ID Bank 1 | . 1 . . . Zone Layout 1 | . 1 . . . Fabricator Hacks . | . . . . . Repair Station Hacks . | . . . . . Recycling Unit Hacks . | . . . . . Scanalyzer . | . . . . . Garrison Access Hacks . | . . . . . Unauthorized Hacks . | . . . . . Terminals . | . . . . . Fabricators . | . . . . . Repair Stations . | . . . . . Recycling Units . | . . . . . Scanalyzers . | . . . . . Garrison Access . | . . . . . Data Cores Recovered . | . . . . . Used . | . . . . . Hacking Detections 1 | . 1 . . . Full Trace Events . | . . . . . Feedback Events . | . . . . . Feedback Blocked . | . . . . . Robot Schematics Acquired . | . . . . . Robots Built . | . . . . . Authchips . | . . . . . Time . | . . . . . Total Robot Build Rating . | . . . . . Part Schematics Acquired . | . . . . . Parts Built . | . . . . . Authchips . | . . . . . Time . | . . . . . Total Part Build Rating . | . . . . . Parts Repaired . | . . . . . Time . | . . . . . Parts Recycled . | . . . . . Recycled Matter . | . . . . . Retrieved Matter . | . . . . . Retrieved Components . | . . . . . Parts Scanalyzed . | . . . . . Part Schematics Acquired . | . . . . . Parts Damaged . | . . . . . Bothacking | -11 -10 -10 -10 -8 ------------ Run | Yrd Mat Min Sub Rec Used RIF Installer . | . . . . . Robots Hacked . | . . . . . Non-combat . | . . . . . Combat . | . . . . . Robot Hacks Applied . | . . . . . Relay Couplers Released . | . . . . . Fabnet Peak Effective % . | . . . . . Robots Rewired . | . . . . . Allies Hacked . | . . . . . Hacks Repelled . | . . . . . Allies | -11 -10 -10 -10 -8 -------- Run | Yrd Mat Min Sub Rec Total Allies . | . . . . . Largest Group . | . . . . . Highest-Rated Group . | . . . . . Highest-Rated Ally . | . . . . . Total Orders . | . . . . . Ally Attacks . | . . . . . Total Damage . | . . . . . Kills . | . . . . . Allies Corrupted . | . . . . . Allies Melted . | . . . . . Intel | -11 -10 -10 -10 -8 ------- Run | Yrd Mat Min Sub Rec Robot Analysis Total . | . . . . . Derelict Logs Recovered 2 | . . 1 1 . Drone Launches . | . . . . . Drone Recoveries . | . . . . . Exploration | -11 -10 -10 -10 -8 ------------- Run | Yrd Mat Min Sub Rec Turns Passed 2534 | 113 574 754 1026 67 Spaces Moved 1379 | 61 313 452 519 34 Core 21 | 21 . . . . Treads 1273 | 40 313 452 468 . Legs 85 | . . . 51 34 Wheels . | . . . . . Hover . | . . . . . Flight . | . . . . . Fastest Speed 50 | 50 160 160 160 190 Average Speed 160 | 131 160 160 162 190 Slowest Speed 200 | 200 160 160 190 190 Overloaded Moves . | . . . . . Propulsion Burnouts . | . . . . . Robots Hopped . | . . . . . Cave-ins Triggered . | . . . . . Exploration Rate (%) 30 | 4 27 71 39 10 Regions Visited 4 Branch Regions 3 Pre-discovered Areas 1 | . . . 1 . Known Exits Taken . | . . . . . Unknown Exits Taken 4 | 1 1 1 1 . Scrap Searched 1 | . . 1 . . Spaces Dug . | . . . . . Terrain Destroyed 8 | . . 6 2 . Melee . | . . . . . Projectile . | . . . . . AOE 8 | . . 6 2 . Terrain Rammed . | . . . . . Walls Destroyed . | . . . . . Machines Disabled . | . . . . . Actions | -11 -10 -10 -10 -8 --------- Run | Yrd Mat Min Sub Rec Total 1569 | 83 356 476 618 36 Wait 65 | . 16 16 33 . Move 1375 | 60 312 451 518 34 Hop . | . . . . . Pick Up 33 | 10 8 2 12 1 Fast Attach . | . . . . . Attach 9 | 6 1 . 2 . Detach . | . . . . . Swap 4 | . 1 . 3 . Drop 12 | . 1 2 8 1 Fire 71 | 7 17 5 42 . Melee . | . . . . . Ram . | . . . . . Kick . | . . . . . Crush . | . . . . . Escape Stasis . | . . . . . Rewire . | . . . . . Trap . | . . . . . Miscellaneous . | . . . . . Route ------- -11/Scrapyard -10/Materials -10/Mines -10/Subcaves -8/Recycling History --------- Turn | Location | Event 21 | -11/Scrapyard | Discovered new exit (range 15) 114 | -11/Scrapyard | Entered Materials 309 | -10/Materials | Build established: Mutant 677 | -10/Materials | Discovered new exit (range 7) 688 | -10/Materials | Entered Mines 695 | -10/Mines | Received a Rocket Launcher from a helpful Derelict 826 | -10/Mines | Learned Materials interactive machine intel 1410 | -10/Mines | Discovered new exit (range 6) 1442 | -10/Mines | Entered Subcaves 1451 | -10/Subcaves | Learned location of Zion (-7) 1451 | -10/Subcaves | Met a Zionite searching for "candidates" 1460 | -10/Subcaves | Learned Materials garrison access intel 1548 | -10/Subcaves | Ambushed by swarm of Subdwellers 1612 | -10/Subcaves | Lost 3 allies 2347 | -10/Subcaves | Core integrity fell below 50% 2369 | -10/Subcaves | Discovered new exit (range 15) 2468 | -10/Subcaves | Entered Recycling 2476 | -8/Recycling | Found Scrap Engine 2535 | -8/Recycling | Self-destructed Last Messages --------------- Destroyed Autobeam. Dropped Lgt. Treads. EXIT=FOUND Acquired 1 matter. Acquired 10 matter. Acquired 19 matter. Autobeam Turret destroyed. Acquired 1 matter. Acquired 12 matter. Acquired 15 matter. Acquired 2 matter. Acquired 7 matter. Acquired 4 matter. Acquired 8 matter. A mysterious object appears at your location! LOCATION=UNKNOWN GOAL=ESCAPE Acquired Scrap Engine. Dropped Scrap Engine. R-06 Scavenger collects Scrap Engine. Map ----- +----------------------------------------------------+ | | | ???????????????????????????????????????? | | ???????????????????????????????????????? | | ???????????????????????????????????????? | | ???????????????????????????????????????? | | ???????????????????????????????????????? | | ???????????????????????????????????????? | | ???????????????????????????????????????? | | ??????????????????????????#####????????? | | ??????????????????????????# ###??????? | | ????????????????#########?# ""#??????? | | ????????????????# % ?# Y"#??????? | | ????????????????# % # ""#??????? | | ????????????????# [ # ###??????? | | ????????????????# ! !+ #????????? | | ????????????????# ! # #????????? | | ????????????????# # #????????? | | ????????????????#] ?# #????????? | | ????????????????# = ?# #????????? | | ????????????????########??# #????????? | | ??????????????????????????# #????????? | | ??????????????????######### #????????? | | ?????????????????? # #????????? | | ?????????????????? """"" # #????????? | | ?????????????????# """"" + +????????? | | ?????????????????# """""@# #????????? | | ?????????????????# # #????????? | | ?????????????????# """"" # #????????? | | ?????????????????# """"" # #????????? | | ?????????????????? """"" # #????????? | | ?????????????????# # #????????? | | ?????????????????########## #????????? | | ??????????????????????????# #????????? | | ??????????????????????????? #????????? | | ??????????????????????????? #????????? | | ??????????????????????????? #????????? | | ??????????????????????????? #????????? | | ??????????????????????????? +????????? | | ??????????????????????????? #????????? | | ??????????????????????????? ?????????? | | ???????????????????????????????????????? | | ???????????????????????????????????????? | | ???????????????????????????????????????? | | ???????????????????????????????????????? | | ???????????????????????????????????????? | | ???????????????????????????????????????? | | ???????????????????????????????????????? | | ???????????????????????????????????????? | | ???????????????????????????????????????? | | ???????????????????????????????????????? | +----------------------------------------------------+ Best States ------------- Heat Dissipation 25 Energy Generation 18 Energy Capacity 250 Matter Stores 300 Matter Capacity 300 Sight Range 16 Terrain Scan Density 10 Evasion (%) 50 Recoil Reduction 2 Item Schematics ----------------- None Robot Schematics ------------------ None Fabricated ------------ Nothing Alien Tech Used ----------------- None Achievements -------------- None Challenges ------------ None Game ------ Seed DecoderHackingSpecial Manual? 0 Play Time 00:21:15 Cumulative 9.9 hours Start 2024.04.02 @ 18:37:11 End 2024.04.02 @ 19:00:28 Sessions 1 Manual Loads 0 Difficulty Rogue Special Mode None Game No. 9 Rogue 9 Adventurer 0 Explorer 0 Win Type - Total 0 Types 0/0/0/0/0/0/0/0/0 Lore% 15 Gallery% 12 Achievement% 12 Wizard Run 0 Options --------- Layout 0 ASCII 0 Keyboard 0 Movement Arrows Keybinds 0 Fullscreen 2 Font 36/Smallcaps Map View 38x25 Zoom Use 100% Tactical HUD 0 Map Filters NONE Filters NONE Steam 1 RUN: 431f6378-dc8b-4cc3-b18b-4e0997e09821